[Event "*** Titled Tuesday 3|2 Blitz"]
[Site "Chess.com"]
[Date "2016.01.05"]
[Round "2"]
[White "Er_is_geen_hoop_meer"]
[Black "Cecile_Haussernot"]
[Result "0-1"]
[WhiteElo "2300"]
[BlackElo "2207"]
[TimeControl "180+2"]
[EndTime "11:20:01 PST"]
[Termination "Cecile_Haussernot won by resignation"]

1. d4 {[%clk 0:02:55.7]} 1... Nf6 {[%clk 0:03:00.6]} 2. c4 {[%clk 0:02:56.5]}
2... e6 {[%clk 0:03:00.8]} 3. Nc3 {[%clk 0:02:57]} 3... Bb4 {[%clk 0:03:00]} 4.
Qc2 {[%clk 0:02:57.9]} 4... O-O {[%clk 0:03:00.2]} 5. Nf3 {[%clk 0:02:58.5]}
5... c5 {[%clk 0:02:59.1]} 6. dxc5 {[%clk 0:03:00.4]} 6... Na6 {[%clk
0:02:56.7]} 7. g3 {[%clk 0:03:01.5]} 7... Nxc5 {[%clk 0:02:56.9]} 8. Bg2 {[%clk
0:03:02.5]} 8... d5 {[%clk 0:02:57.1]} 9. cxd5 {[%clk 0:03:01.7]} 9... exd5
{[%clk 0:02:55.8]} 10. O-O {[%clk 0:03:02.3]} 10... Bg4 {[%clk 0:02:49.7]} 11.
Rd1 {[%clk 0:03:02.2]} 11... Bxc3 {[%clk 0:02:43.9]} 12. Qxc3 {[%clk 0:03:01.3]}
12... Nce4 {[%clk 0:02:42.7]} 13. Qb3 {[%clk 0:02:58.7]} 13... Qe7 {[%clk
0:02:27.1]} 14. Be3 {[%clk 0:02:53.9]} 14... b6 {[%clk 0:02:24.1]} 15. Rac1
{[%clk 0:02:52.9]} 15... Rac8 {[%clk 0:02:24.7]} 16. h3 {[%clk 0:02:53.3]} 16...
Be6 {[%clk 0:02:22.9]} 17. Nd4 {[%clk 0:02:53.6]} 17... Nc5 {[%clk 0:02:20.9]}
18. Qa3 {[%clk 0:02:53.2]} 18... Nfe4 {[%clk 0:02:17.1]} 19. Bxe4 {[%clk
0:02:24.2]} 19... dxe4 {[%clk 0:02:16.9]} 20. Nxe6 {[%clk 0:02:25.1]} 20... Qxe6
{[%clk 0:02:12.9]} 21. Bxc5 {[%clk 0:02:25.6]} 21... bxc5 {[%clk 0:02:12.1]} 22.
Rxc5 {[%clk 0:02:27.5]} 22... e3 {[%clk 0:02:04.1]} 23. Rxc8 {[%clk 0:02:17.3]}
23... exf2+ {[%clk 0:02:05]} 24. Kxf2 {[%clk 0:02:18.9]} 24... Rxc8 {[%clk
0:02:06.2]} 25. Qxa7 {[%clk 0:02:13.4]} 25... Qxh3 {[%clk 0:02:06]} 26. Qb7
{[%clk 0:02:13.5]} 26... Re8 {[%clk 0:02:01.1]} 27. Rh1 {[%clk 0:01:59]} 27...
Qg4 {[%clk 0:01:53.1]} 28. Qb5 {[%clk 0:01:52]} 28... Qd4+ {[%clk 0:01:50.3]}
29. Kg2 {[%clk 0:01:51.4]} 29... Qe4+ {[%clk 0:01:47.3]} 30. Kg1 {[%clk
0:01:46.1]} 30... Rc8 {[%clk 0:01:43.7]} 31. Rh4 {[%clk 0:01:42]} 31... Qe3+
{[%clk 0:01:38.5]} 32. Kg2 {[%clk 0:01:42.5]} 32... h6 {[%clk 0:01:31.2]} 33. a4
{[%clk 0:01:41.8]} 33... Rc2 {[%clk 0:01:28.9]} 34. Kh3 {[%clk 0:01:19.9]} 34...
Qe6+ {[%clk 0:01:24.7]} 35. Rg4 {[%clk 0:01:10.6]} 35... Rxe2 {[%clk 0:01:22.4]}
36. Qb8+ {[%clk 0:00:49.8]} 36... Kh7 {[%clk 0:01:22.9]} 37. Qf4 {[%clk
0:00:51.7]} 37... h5 {[%clk 0:01:21.5]} 0-1

[Event "*** Titled Tuesday 3|2 Blitz"]
[Site "Chess.com"]
[Date "2016.01.05"]
[Round "2"]
[White "cool64chess"]
[Black "SmarterChess"]
[Result "0-1"]
[WhiteElo "2218"]
[BlackElo "2131"]
[TimeControl "180+2"]
[EndTime "11:20:21 PST"]
[Termination "SmarterChess won by resignation"]

1. d4 {[%clk 0:02:47]} 1... d6 {[%clk 0:02:58]} 2. Nf3 {[%clk 0:02:46.1]} 2...
Bg4 {[%clk 0:02:57.3]} 3. e4 {[%clk 0:02:40.8]} 3... g6 {[%clk 0:02:55]} 4. Be2
{[%clk 0:02:35.8]} 4... Bg7 {[%clk 0:02:55.1]} 5. O-O {[%clk 0:02:27.5]} 5...
Nd7 {[%clk 0:02:53]} 6. c3 {[%clk 0:02:26.3]} 6... e6 {[%clk 0:02:21.4]} 7. h3
{[%clk 0:02:17.6]} 7... Bxf3 {[%clk 0:02:21.9]} 8. Bxf3 {[%clk 0:02:15.9]} 8...
Ne7 {[%clk 0:02:17.7]} 9. a4 {[%clk 0:01:49.4]} 9... O-O {[%clk 0:02:17.3]} 10.
a5 {[%clk 0:01:49.5]} 10... a6 {[%clk 0:02:02.5]} 11. e5 {[%clk 0:01:39]} 11...
d5 {[%clk 0:02:02.3]} 12. Nd2 {[%clk 0:01:10.5]} 12... c5 {[%clk 0:01:57.6]} 13.
Nb3 {[%clk 0:01:08.3]} 13... c4 {[%clk 0:01:21.2]} 14. Nd2 {[%clk 0:01:07.2]}
14... Nc6 {[%clk 0:01:22.3]} 15. Qa4 {[%clk 0:00:51.1]} 15... Qc7 {[%clk
0:01:12.5]} 16. b3 {[%clk 0:00:48.9]} 16... cxb3 {[%clk 0:00:41.1]} 17. Nxb3
{[%clk 0:00:44.6]} 17... Na7 {[%clk 0:00:40.3]} 18. Ba3 {[%clk 0:00:26.6]} 18...
Rfc8 {[%clk 0:00:39.4]} 19. Bd6 {[%clk 0:00:25.4]} 19... Qc6 {[%clk 0:00:34.6]}
20. Qxc6 {[%clk 0:00:18.5]} 20... Rxc6 {[%clk 0:00:36.5]} 21. Rfc1 {[%clk
0:00:18.4]} 21... Rac8 {[%clk 0:00:36.7]} 22. Nc5 {[%clk 0:00:18.5]} 22... Nxc5
{[%clk 0:00:37.1]} 23. dxc5 {[%clk 0:00:19.8]} 23... Nb5 {[%clk 0:00:37.8]} 24.
c4 {[%clk 0:00:21]} 24... Nxd6 {[%clk 0:00:37.5]} 25. cxd5 {[%clk 0:00:19.2]}
25... Rxc5 {[%clk 0:00:35.6]} 26. Rxc5 {[%clk 0:00:19.8]} 26... Rxc5 {[%clk
0:00:36.9]} 27. exd6 {[%clk 0:00:20.4]} 27... Bxa1 {[%clk 0:00:37.3]} 28. d7
{[%clk 0:00:21.5]} 28... Bf6 {[%clk 0:00:39]} 0-1

[Event "*** Titled Tuesday 3|2 Blitz"]
[Site "Chess.com"]
[Date "2016.01.05"]
[Round "2"]
[White "BellJackson95"]
[Black "ER404"]
[Result "0-1"]
[WhiteElo "2264"]
[BlackElo "2138"]
[TimeControl "180+2"]
[EndTime "11:20:50 PST"]
[Termination "ER404 won by resignation"]

1. e4 {[%clk 0:03:01.9]} 1... c5 {[%clk 0:03:00.7]} 2. Nf3 {[%clk 0:03:02.7]}
2... Nc6 {[%clk 0:03:01.2]} 3. d4 {[%clk 0:03:04]} 3... cxd4 {[%clk 0:03:03.1]}
4. c3 {[%clk 0:03:05.6]} 4... Nf6 {[%clk 0:03:00.4]} 5. e5 {[%clk 0:03:03.3]}
5... Nd5 {[%clk 0:03:01.3]} 6. cxd4 {[%clk 0:03:04.7]} 6... d6 {[%clk
0:03:01.9]} 7. Bc4 {[%clk 0:03:05.9]} 7... Nb6 {[%clk 0:03:01.8]} 8. Bb3 {[%clk
0:03:07.4]} 8... dxe5 {[%clk 0:03:02.8]} 9. d5 {[%clk 0:02:59.5]} 9... Na5
{[%clk 0:03:03.6]} 10. Nc3 {[%clk 0:02:58.2]} 10... Bg4 {[%clk 0:03:04.3]} 11.
Bc2 {[%clk 0:02:41.2]} 11... e6 {[%clk 0:02:39.1]} 12. Ba4+ {[%clk 0:02:24.6]}
12... Ke7 {[%clk 0:02:23.7]} 13. b4 {[%clk 0:01:47.2]} 13... Nac4 {[%clk
0:02:10.4]} 14. Qe2 {[%clk 0:01:26.3]} 14... exd5 {[%clk 0:01:59.8]} 15. h3
{[%clk 0:01:09.2]} 15... Bxf3 {[%clk 0:01:58.5]} 16. Qxf3 {[%clk 0:01:09.6]}
16... f6 {[%clk 0:01:43.2]} 17. O-O {[%clk 0:01:08]} 17... Kf7 {[%clk
0:01:34.6]} 18. a3 {[%clk 0:01:07.1]} 18... Nxa4 {[%clk 0:01:28.8]} 19. Nxa4
{[%clk 0:01:02.7]} 19... Qd7 {[%clk 0:01:17.5]} 20. Nc3 {[%clk 0:01:00.7]} 20...
e4 {[%clk 0:01:08.5]} 21. Qe2 {[%clk 0:00:58.8]} 21... Ne5 {[%clk 0:00:59.6]}
22. Rd1 {[%clk 0:00:51.1]} 22... Nd3 {[%clk 0:01:00.5]} 23. f3 {[%clk 0:00:39]}
23... f5 {[%clk 0:00:32.4]} 24. fxe4 {[%clk 0:00:38]} 24... dxe4 {[%clk
0:00:28.9]} 25. Bg5 {[%clk 0:00:22.1]} 25... Qd4+ {[%clk 0:00:24.7]} 26. Kh2
{[%clk 0:00:20]} 26... Bd6+ {[%clk 0:00:21.7]} 27. Kh1 {[%clk 0:00:20.3]} 27...
Nf2+ {[%clk 0:00:17.5]} 28. Kg1 {[%clk 0:00:17.7]} 28... Nxd1+ {[%clk
0:00:15.4]} 0-1

[Event "*** Titled Tuesday 3|2 Blitz"]
[Site "Chess.com"]
[Date "2016.01.05"]
[Round "2"]
[White "jk13"]
[Black "chessdude"]
[Result "0-1"]
[WhiteElo "2276"]
[BlackElo "2303"]
[TimeControl "180+2"]
[EndTime "11:20:51 PST"]
[Termination "chessdude won by resignation"]

1. e4 {[%clk 0:02:41.3]} 1... e5 {[%clk 0:02:59.9]} 2. Nf3 {[%clk 0:02:41.9]}
2... Nc6 {[%clk 0:03:01.1]} 3. Bc4 {[%clk 0:02:43.6]} 3... Bc5 {[%clk
0:03:01.5]} 4. c3 {[%clk 0:02:44.9]} 4... Nf6 {[%clk 0:03:01.8]} 5. d3 {[%clk
0:02:46.5]} 5... O-O {[%clk 0:03:02.6]} 6. O-O {[%clk 0:02:45.9]} 6... d5 {[%clk
0:03:02.9]} 7. exd5 {[%clk 0:02:47.8]} 7... Nxd5 {[%clk 0:03:03.9]} 8. Re1
{[%clk 0:02:49.7]} 8... Bg4 {[%clk 0:03:04.8]} 9. h3 {[%clk 0:02:50.7]} 9... Bh5
{[%clk 0:03:05.8]} 10. Nbd2 {[%clk 0:02:52.4]} 10... Nb6 {[%clk 0:02:58.5]} 11.
Bb5 {[%clk 0:02:53.7]} 11... Bd6 {[%clk 0:02:56.4]} 12. Ne4 {[%clk 0:02:53.5]}
12... Re8 {[%clk 0:02:53.2]} 13. Ng3 {[%clk 0:02:54.4]} 13... Bg6 {[%clk
0:02:54.1]} 14. a4 {[%clk 0:02:54.1]} 14... a6 {[%clk 0:02:51.7]} 15. Bxc6
{[%clk 0:02:55.1]} 15... bxc6 {[%clk 0:02:53.1]} 16. Bg5 {[%clk 0:02:51.4]}
16... f6 {[%clk 0:02:53.6]} 17. Be3 {[%clk 0:02:49.7]} 17... Nd5 {[%clk
0:02:50.3]} 18. Nh4 {[%clk 0:02:51.2]} 18... Nxe3 {[%clk 0:02:36.9]} 19. fxe3
{[%clk 0:02:41.3]} 19... Bf7 {[%clk 0:02:37.4]} 20. Qf3 {[%clk 0:02:35.7]} 20...
Bf8 {[%clk 0:02:31.5]} 21. d4 {[%clk 0:02:30.1]} 21... exd4 {[%clk 0:02:30.6]}
22. exd4 {[%clk 0:02:29.7]} 22... Qd5 {[%clk 0:02:31.5]} 23. Qg4 {[%clk
0:02:16.8]} 23... g6 {[%clk 0:02:23.8]} 24. Ne4 {[%clk 0:02:01.1]} 24... Bg7
{[%clk 0:02:18.8]} 25. Nc5 {[%clk 0:01:54.4]} 25... f5 {[%clk 0:02:15.2]} 26.
Qf4 {[%clk 0:01:51.3]} 26... Qd6 {[%clk 0:02:11.1]} 27. g3 {[%clk 0:01:45.5]}
27... Qxf4 {[%clk 0:02:00.5]} 28. gxf4 {[%clk 0:01:46.3]} 28... Bh6 {[%clk
0:02:00.2]} 29. Ng2 {[%clk 0:01:47.9]} 29... a5 {[%clk 0:01:52.7]} 30. Kf2
{[%clk 0:01:35.1]} 30... Bd5 {[%clk 0:01:53.2]} 31. Rxe8+ {[%clk 0:01:29.4]}
31... Rxe8 {[%clk 0:01:53.1]} 32. Re1 {[%clk 0:01:30.9]} 32... Rxe1 {[%clk
0:01:51.8]} 33. Nxe1 {[%clk 0:01:30.8]} 33... Bxf4 {[%clk 0:01:51.8]} 34. Nb7
{[%clk 0:01:30.6]} 34... Bc1 {[%clk 0:01:36.7]} 35. Nd3 {[%clk 0:01:28.9]} 35...
Bg5 {[%clk 0:01:38.2]} 36. Nxa5 {[%clk 0:01:29.7]} 36... f4 {[%clk 0:01:38.6]}
37. Ne5 {[%clk 0:01:26.5]} 37... Bh4+ {[%clk 0:01:31]} 38. Ke2 {[%clk
0:01:27.1]} 38... c5 {[%clk 0:01:31.7]} 39. dxc5 {[%clk 0:01:25.8]} 39... Bf6
{[%clk 0:01:28.9]} 40. Nf3 {[%clk 0:01:25.4]} 40... g5 {[%clk 0:01:29.8]} 41.
Nd4 {[%clk 0:01:15.8]} 41... h5 {[%clk 0:01:27.5]} 42. Nac6 {[%clk 0:01:16.9]}
42... g4 {[%clk 0:01:26.4]} 43. hxg4 {[%clk 0:01:18]} 43... hxg4 {[%clk
0:01:27.3]} 44. Nb4 {[%clk 0:01:19.9]} 44... f3+ {[%clk 0:01:24.6]} 45. Ke3
{[%clk 0:01:18.6]} 45... Bg5+ {[%clk 0:01:24.9]} 46. Kf2 {[%clk 0:01:19.8]}
46... Bh4+ {[%clk 0:01:25.5]} 47. Ke3 {[%clk 0:01:21.2]} 47... f2 {[%clk
0:01:20.9]} 48. Nxd5 {[%clk 0:01:10.5]} 48... f1=Q {[%clk 0:01:20.2]} 49. b4
{[%clk 0:01:09.3]} 49... Bf2+ {[%clk 0:01:19.4]} 50. Ke4 {[%clk 0:01:09.8]}
50... Bxd4 {[%clk 0:01:20.2]} 51. Kxd4 {[%clk 0:01:11.7]} 51... g3 {[%clk
0:01:21.3]} 0-1

[Event "*** Titled Tuesday 3|2 Blitz"]
[Site "Chess.com"]
[Date "2016.01.05"]
[Round "2"]
[White "GargleBlaster"]
[Black "jup1978"]
[Result "1-0"]
[WhiteElo "2259"]
[BlackElo "2217"]
[TimeControl "180+2"]
[EndTime "11:20:55 PST"]
[Termination "GargleBlaster won by resignation"]

1. e4 {[%clk 0:03:01.9]} 1... e6 {[%clk 0:03:00.7]} 2. d4 {[%clk 0:03:00.3]}
2... d5 {[%clk 0:03:02]} 3. Nc3 {[%clk 0:03:00.2]} 3... Bb4 {[%clk 0:03:00.8]}
4. exd5 {[%clk 0:03:00.6]} 4... exd5 {[%clk 0:03:01.4]} 5. Bd3 {[%clk
0:03:02.2]} 5... Nf6 {[%clk 0:03:02.3]} 6. Ne2 {[%clk 0:03:00.9]} 6... O-O
{[%clk 0:03:03.8]} 7. O-O {[%clk 0:03:02.5]} 7... c6 {[%clk 0:03:02.6]} 8. Bg5
{[%clk 0:03:03]} 8... Re8 {[%clk 0:03:03.4]} 9. h3 {[%clk 0:02:47.2]} 9... Nbd7
{[%clk 0:03:03.1]} 10. Ng3 {[%clk 0:02:45.6]} 10... Nf8 {[%clk 0:03:01.8]} 11.
Nf5 {[%clk 0:02:45.3]} 11... Bxf5 {[%clk 0:03:01.1]} 12. Bxf5 {[%clk 0:02:45.7]}
12... Ng6 {[%clk 0:03:01.2]} 13. Qf3 {[%clk 0:02:28.6]} 13... h6 {[%clk
0:02:59.5]} 14. Bxg6 {[%clk 0:02:23.6]} 14... fxg6 {[%clk 0:03:01.4]} 15. Bf4
{[%clk 0:02:14.4]} 15... Bd6 {[%clk 0:02:59]} 16. Rfe1 {[%clk 0:02:13.3]} 16...
Qd7 {[%clk 0:02:59]} 17. Bxh6 {[%clk 0:01:54.4]} 17... Ne4 {[%clk 0:02:49.2]}
18. Nxe4 {[%clk 0:01:38.3]} 18... dxe4 {[%clk 0:02:45.4]} 19. Qb3+ {[%clk
0:01:39.1]} 19... Qf7 {[%clk 0:02:44.5]} 20. Qxf7+ {[%clk 0:01:39]} 20... Kxf7
{[%clk 0:02:46.4]} 21. Bg5 {[%clk 0:01:33.7]} 21... Rac8 {[%clk 0:02:44.8]} 22.
Re2 {[%clk 0:01:34.1]} 22... Re6 {[%clk 0:02:45.2]} 23. Rae1 {[%clk 0:01:35.4]}
23... Rce8 {[%clk 0:02:46.7]} 24. f3 {[%clk 0:01:22.8]} 24... exf3 {[%clk
0:02:48.6]} 25. Rxe6 {[%clk 0:01:23.8]} 25... Rxe6 {[%clk 0:02:48.2]} 26. Rxe6
{[%clk 0:01:24.6]} 26... Kxe6 {[%clk 0:02:50.1]} 27. gxf3 {[%clk 0:01:26.2]}
27... Kd5 {[%clk 0:02:51.3]} 28. Kf2 {[%clk 0:01:17.3]} 28... a5 {[%clk
0:02:48.3]} 29. Ke3 {[%clk 0:01:14.6]} 29... b5 {[%clk 0:02:41.9]} 30. Kd3
{[%clk 0:01:13.5]} 30... a4 {[%clk 0:02:39]} 31. b3 {[%clk 0:01:12.6]} 31...
axb3 {[%clk 0:02:40]} 32. axb3 {[%clk 0:01:13.4]} 32... b4 {[%clk 0:02:38.2]}
33. Bd2 {[%clk 0:01:04.4]} 33... Be7 {[%clk 0:02:38.3]} 34. Bf4 {[%clk
0:01:04.2]} 34... Bf8 {[%clk 0:02:38.5]} 35. Be5 {[%clk 0:01:05.4]} 35... c5
{[%clk 0:02:33.8]} 36. Ke3 {[%clk 0:00:41.9]} 36... c4 {[%clk 0:02:32.1]} 37.
Kf4 {[%clk 0:00:37.2]} 37... cxb3 {[%clk 0:02:22.1]} 38. cxb3 {[%clk 0:00:37.9]}
38... Be7 {[%clk 0:02:21.6]} 39. Bxg7 {[%clk 0:00:38.4]} 39... Bd6+ {[%clk
0:02:23]} 40. Be5 {[%clk 0:00:34.5]} 40... Be7 {[%clk 0:02:24]} 41. Kg4 {[%clk
0:00:28.6]} 41... Bd8 {[%clk 0:02:24.8]} 42. h4 {[%clk 0:00:27.4]} 42... Be7
{[%clk 0:02:25.9]} 43. f4 {[%clk 0:00:28.2]} 43... Ke4 {[%clk 0:02:26.3]} 44.
Bh8 {[%clk 0:00:22.7]} 44... Bd8 {[%clk 0:02:25]} 45. Bg7 {[%clk 0:00:22.9]}
45... Be7 {[%clk 0:02:25.4]} 46. Be5 {[%clk 0:00:19.7]} 46... Bd8 {[%clk
0:02:26.4]} 47. Bd6 {[%clk 0:00:20.1]} 47... Kxd4 {[%clk 0:02:27.8]} 48. Bxb4
{[%clk 0:00:20.5]} 48... Ke4 {[%clk 0:02:28.4]} 49. Bd6 {[%clk 0:00:18.8]} 49...
Kd5 {[%clk 0:02:28.2]} 50. Be5 {[%clk 0:00:19.5]} 50... Be7 {[%clk 0:02:27.4]}
51. Bc3 {[%clk 0:00:18.6]} 51... Ke4 {[%clk 0:02:28]} 52. Bg7 {[%clk 0:00:14.9]}
52... Bd6 {[%clk 0:02:28.6]} 53. Kg5 {[%clk 0:00:14.7]} 53... Bxf4+ {[%clk
0:02:24.1]} 54. Kxg6 {[%clk 0:00:15.9]} 54... Kd3 {[%clk 0:02:23.3]} 55. h5
{[%clk 0:00:14.1]} 55... Ke4 {[%clk 0:02:23.1]} 56. h6 {[%clk 0:00:11]} 56...
Bxh6 {[%clk 0:02:24.6]} 57. Bxh6 {[%clk 0:00:12]} 57... Kd5 {[%clk 0:02:26.5]}
58. Bf8 {[%clk 0:00:13.3]} 58... Kc6 {[%clk 0:02:27.4]} 59. b4 {[%clk
0:00:14.1]} 59... Kd5 {[%clk 0:02:29.3]} 60. Kf5 {[%clk 0:00:15.5]} 60... Kc4
{[%clk 0:02:30.8]} 61. Ke4 {[%clk 0:00:16.7]} 61... Kb5 {[%clk 0:02:32.7]} 1-0

[Event "*** Titled Tuesday 3|2 Blitz"]
[Site "Chess.com"]
[Date "2016.01.05"]
[Round "2"]
[White "bugsbunny444"]
[Black "Fandorine"]
[Result "0-1"]
[WhiteElo "2357"]
[BlackElo "2532"]
[TimeControl "180+2"]
[EndTime "11:21:15 PST"]
[Termination "Fandorine won on time"]

1. Nf3 {[%clk 0:03:01.9]} 1... g6 {[%clk 0:02:59]} 2. e4 {[%clk 0:03:02.4]} 2...
Bg7 {[%clk 0:03:00.5]} 3. d4 {[%clk 0:03:04]} 3... d6 {[%clk 0:03:02.1]} 4. Nc3
{[%clk 0:03:05.3]} 4... Nf6 {[%clk 0:03:02.6]} 5. h3 {[%clk 0:03:06.4]} 5... O-O
{[%clk 0:03:02.6]} 6. Be3 {[%clk 0:03:07.5]} 6... a6 {[%clk 0:03:01.4]} 7. a4
{[%clk 0:03:08]} 7... Nc6 {[%clk 0:03:02.1]} 8. Be2 {[%clk 0:03:08.3]} 8... e6
{[%clk 0:02:58.8]} 9. O-O {[%clk 0:02:53.3]} 9... b6 {[%clk 0:02:59.4]} 10. Qd2
{[%clk 0:02:44.8]} 10... Re8 {[%clk 0:02:58.4]} 11. Bg5 {[%clk 0:02:45.1]} 11...
Bb7 {[%clk 0:02:55.2]} 12. Rad1 {[%clk 0:02:40.6]} 12... Ne7 {[%clk 0:02:39.4]}
13. Qf4 {[%clk 0:02:26.5]} 13... Nd7 {[%clk 0:02:26.2]} 14. Bh6 {[%clk
0:02:12.1]} 14... Nc6 {[%clk 0:02:19.8]} 15. Bxg7 {[%clk 0:01:50.5]} 15... Kxg7
{[%clk 0:02:20]} 16. e5 {[%clk 0:01:48.5]} 16... d5 {[%clk 0:02:15.7]} 17. Ng5
{[%clk 0:01:16.7]} 17... Rf8 {[%clk 0:02:07.5]} 18. h4 {[%clk 0:01:04.1]} 18...
h6 {[%clk 0:02:06.1]} 19. Nh3 {[%clk 0:00:57]} 19... Nb4 {[%clk 0:01:49]} 20.
Rd2 {[%clk 0:00:46]} 20... c5 {[%clk 0:01:48.7]} 21. Nd1 {[%clk 0:00:27.2]}
21... cxd4 {[%clk 0:01:46.9]} 22. Qxd4 {[%clk 0:00:25.6]} 22... Nc6 {[%clk
0:01:47.3]} 23. Qf4 {[%clk 0:00:21.1]} 23... Ndxe5 {[%clk 0:01:44.7]} 24. c4
{[%clk 0:00:21.5]} 24... d4 {[%clk 0:01:38.7]} 25. b4 {[%clk 0:00:20.5]} 25...
d3 {[%clk 0:01:24.8]} 26. Re1 {[%clk 0:00:16.9]} 26... Qf6 {[%clk 0:01:23.2]}
27. Qxf6+ {[%clk 0:00:17.5]} 27... Kxf6 {[%clk 0:01:24.2]} 28. Bf1 {[%clk
0:00:09.7]} 28... Nxb4 {[%clk 0:01:22.6]} 29. Nb2 {[%clk 0:00:09.8]} 29... Rad8
{[%clk 0:01:18.4]} 30. f4 {[%clk 0:00:09]} 30... Nd7 {[%clk 0:01:13]} 31. Nf2
{[%clk 0:00:09]} 31... Nc5 {[%clk 0:01:13.4]} 32. Red1 {[%clk 0:00:05.3]} 32...
Rd4 {[%clk 0:01:10.8]} 33. g3 {[%clk 0:00:04]} 33... Rfd8 {[%clk 0:01:04.8]} 34.
Ng4+ {[%clk 0:00:04.3]} 34... Kg7 {[%clk 0:00:58.9]} 35. Kf2 {[%clk 0:00:03.8]}
35... Ne4+ {[%clk 0:00:59]} 36. Ke3 {[%clk 0:00:04.4]} 36... Nc2+ {[%clk
0:00:58.8]} 0-1

[Event "*** Titled Tuesday 3|2 Blitz"]
[Site "Chess.com"]
[Date "2016.01.05"]
[Round "2"]
[White "stefanodinn"]
[Black "Krutoy123"]
[Result "0-1"]
[WhiteElo "2152"]
[BlackElo "2349"]
[TimeControl "180+2"]
[EndTime "11:21:17 PST"]
[Termination "Krutoy123 won by checkmate"]

1. e4 {[%clk 0:03:01.4]} 1... c5 {[%clk 0:02:57.1]} 2. Nf3 {[%clk 0:03:01.9]}
2... e6 {[%clk 0:02:58.1]} 3. d4 {[%clk 0:03:02.4]} 3... cxd4 {[%clk 0:02:58.5]}
4. Nxd4 {[%clk 0:03:02.4]} 4... a6 {[%clk 0:02:59.4]} 5. Bd3 {[%clk 0:03:01.9]}
5... Bc5 {[%clk 0:02:59.5]} 6. Nb3 {[%clk 0:03:01.4]} 6... Be7 {[%clk
0:03:00.7]} 7. O-O {[%clk 0:03:01.3]} 7... Nc6 {[%clk 0:03:00.9]} 8. c4 {[%clk
0:03:01.6]} 8... Nf6 {[%clk 0:03:00.9]} 9. Nc3 {[%clk 0:03:02.2]} 9... O-O
{[%clk 0:03:01.9]} 10. Kh1 {[%clk 0:02:55.6]} 10... b6 {[%clk 0:03:01.1]} 11.
Bg5 {[%clk 0:02:54.3]} 11... Bb7 {[%clk 0:03:00.5]} 12. f4 {[%clk 0:02:54.6]}
12... d6 {[%clk 0:02:59.4]} 13. Qf3 {[%clk 0:02:48.1]} 13... Qc7 {[%clk
0:02:54.4]} 14. Rac1 {[%clk 0:02:47]} 14... Nb4 {[%clk 0:02:50.1]} 15. Be2
{[%clk 0:02:28.5]} 15... h6 {[%clk 0:02:39.6]} 16. Bxf6 {[%clk 0:02:08.5]} 16...
Bxf6 {[%clk 0:02:39.5]} 17. a3 {[%clk 0:02:09.1]} 17... Nc6 {[%clk 0:02:37.4]}
18. Nd5 {[%clk 0:02:06.5]} 18... exd5 {[%clk 0:02:39.3]} 19. cxd5 {[%clk
0:02:07.1]} 19... Qd7 {[%clk 0:02:37]} 20. dxc6 {[%clk 0:02:06.9]} 20... Bxc6
{[%clk 0:02:38.9]} 21. Rc2 {[%clk 0:01:45.8]} 21... Rfe8 {[%clk 0:02:28.7]} 22.
Nd2 {[%clk 0:01:42.5]} 22... Qb7 {[%clk 0:02:25.1]} 23. Bd3 {[%clk 0:01:41.3]}
23... Ba4 {[%clk 0:02:23.2]} 24. b3 {[%clk 0:01:38.2]} 24... Bb5 {[%clk
0:02:24.5]} 25. Rfc1 {[%clk 0:01:37.4]} 25... Rec8 {[%clk 0:02:16.1]} 26. a4
{[%clk 0:01:31.3]} 26... Rxc2 {[%clk 0:02:15.5]} 27. Rxc2 {[%clk 0:01:30.7]}
27... Bc6 {[%clk 0:02:15.5]} 28. h3 {[%clk 0:01:12.4]} 28... b5 {[%clk
0:02:15.4]} 29. axb5 {[%clk 0:01:10]} 29... axb5 {[%clk 0:02:17.3]} 30. Kh2
{[%clk 0:01:08.9]} 30... g5 {[%clk 0:02:16.2]} 31. fxg5 {[%clk 0:00:50.3]} 31...
Be5+ {[%clk 0:02:16.4]} 32. g3 {[%clk 0:00:38.7]} 32... hxg5 {[%clk 0:02:18.3]}
33. Qg4 {[%clk 0:00:37.4]} 33... f6 {[%clk 0:02:01.9]} 34. Nf3 {[%clk
0:00:37.4]} 34... Bd7 {[%clk 0:01:54.3]} 35. Qh5 {[%clk 0:00:33.9]} 35... Be6
{[%clk 0:01:55.1]} 36. Nxe5 {[%clk 0:00:27.8]} 36... dxe5 {[%clk 0:01:57]} 37.
b4 {[%clk 0:00:20.4]} 37... Kg7 {[%clk 0:01:50.5]} 38. Qe2 {[%clk 0:00:17.6]}
38... Rh8 {[%clk 0:01:45.3]} 39. Bxb5 {[%clk 0:00:14]} 39... Bxh3 {[%clk
0:01:43.3]} 40. Kg1 {[%clk 0:00:12]} 40... Qb6+ {[%clk 0:01:40.1]} 41. Rc5
{[%clk 0:00:12.3]} 41... Ra8 {[%clk 0:01:29.3]} 42. Kh2 {[%clk 0:00:10.8]} 42...
Be6 {[%clk 0:01:29.8]} 43. Rc6 {[%clk 0:00:09.7]} 43... Rh8+ {[%clk 0:01:29.7]}
44. Kg2 {[%clk 0:00:08]} 44... Bh3+ {[%clk 0:01:30.2]} 45. Kf3 {[%clk
0:00:04.6]} 45... g4# {[%clk 0:01:30.3]} 0-1

[Event "*** Titled Tuesday 3|2 Blitz"]
[Site "Chess.com"]
[Date "2016.01.05"]
[Round "2"]
[White "ftorodent"]
[Black "wilju"]
[Result "1-0"]
[WhiteElo "2331"]
[BlackElo "1824"]
[TimeControl "180+2"]
[EndTime "11:21:19 PST"]
[Termination "ftorodent won on time"]

1. d4 {[%clk 0:03:01.9]} 1... d5 {[%clk 0:02:59.8]} 2. c4 {[%clk 0:03:02.2]}
2... c6 {[%clk 0:02:55.6]} 3. Nf3 {[%clk 0:03:01]} 3... Nf6 {[%clk 0:02:54.2]}
4. Nc3 {[%clk 0:03:00.9]} 4... e6 {[%clk 0:02:48]} 5. e3 {[%clk 0:03:01.2]} 5...
Bb4 {[%clk 0:02:47.6]} 6. Bd3 {[%clk 0:02:53.2]} 6... O-O {[%clk 0:02:46.9]} 7.
O-O {[%clk 0:02:53.5]} 7... Nbd7 {[%clk 0:02:43.3]} 8. Qc2 {[%clk 0:02:50.8]}
8... a6 {[%clk 0:02:38.4]} 9. Bd2 {[%clk 0:02:43.8]} 9... b6 {[%clk 0:02:34]}
10. Nxd5 {[%clk 0:02:27.5]} 10... cxd5 {[%clk 0:01:50.5]} 11. Bxb4 {[%clk
0:02:27]} 11... dxc4 {[%clk 0:01:50]} 12. Bxf8 {[%clk 0:01:53.4]} 12... cxd3
{[%clk 0:01:48.2]} 13. Qc6 {[%clk 0:01:54.3]} 13... Ra7 {[%clk 0:01:48.2]} 14.
Bd6 {[%clk 0:01:47.2]} 14... Bb7 {[%clk 0:01:47.6]} 15. Qc1 {[%clk 0:01:22.6]}
15... Ne4 {[%clk 0:01:29.3]} 16. Bg3 {[%clk 0:01:16.3]} 16... a5 {[%clk
0:01:05.3]} 17. Rd1 {[%clk 0:01:07.3]} 17... Ba6 {[%clk 0:01:02.1]} 18. Qc6
{[%clk 0:01:05.1]} 18... Ndf6 {[%clk 0:00:47]} 19. Rac1 {[%clk 0:01:05.2]} 19...
h6 {[%clk 0:00:42.3]} 20. Bc7 {[%clk 0:01:00.7]} 20... Qd5 {[%clk 0:00:32.8]}
21. Bxb6 {[%clk 0:00:49.1]} 21... Rb7 {[%clk 0:00:28.2]} 22. Bd8 {[%clk
0:00:34.3]} 22... Rxb2 {[%clk 0:00:17.9]} 23. Qxa6 {[%clk 0:00:31.1]} 23... Rxf2
{[%clk 0:00:17.5]} 24. Qxa5 {[%clk 0:00:22.2]} 24... Qd6 {[%clk 0:00:05]} 25.
Bc7 {[%clk 0:00:20.8]} 25... Qd7 {[%clk 0:00:04]} 26. Rxd3 {[%clk 0:00:20.4]}
1-0